bitfinex-derivatives/quotes_BTCF0:USTF0_20250517
["timestamp","ask_amount","ask_price","bid_price","bid_amount"]
[1747498983087,0.85623017,103070.0,103060.0,0.03320005]
[1747498983594,0.7067779,103070.0,103060.0,0.03320005]
[1747498984397,0.3459779,103070.0,103060.0,0.03320005]
[1747498984595,0.86210443,103070.0,103060.0,0.03320005]
[1747498984987,0.86210443,103070.0,103060.0,0.22719675]
[1747498985193,0.86210443,103070.0,103060.0,0.25819675]
[1747498985388,0.81210443,103070.0,103060.0,0.29139675]
[1747498986184,0.81210443,103070.0,103060.0,0.09740005]
[1747498986388,0.81210443,103070.0,103060.0,0.29139675]
[1747498986789,0.80666227,103070.0,103060.0,0.29139675]
[1747498987191,0.82666227,103070.0,103060.0,0.29139675]
[1747498989101,0.77626227,103070.0,103060.0,0.29139675]
[1747498989297,0.15588437,103070.0,103060.0,0.54084902]
[1747498989599,0.34986227,103070.0,103060.0,0.54084902]
[1747498989793,0.35530443,103070.0,103060.0,0.54084902]
[1747498990701,0.1999779,103070.0,103060.0,0.58933926]
[1747498991398,0.006,103070.0,103060.0,0.58933926]
[1747498991894,1e-07,103070.0,103060.0,1.23013926]
[1747498992097,1e-07,103070.0,103060.0,1.41013926]
[1747498992997,1e-07,103070.0,103060.0,1.62705926]
[1747498993603,0.193978,103070.0,103060.0,1.62705926]
[1747498993806,0.19942016,103070.0,103060.0,1.62705926]
[1747498994100,0.19942016,103070.0,103060.0,1.84485926]
[1747498994399,0.19942016,103070.0,103060.0,1.66485926]
[1747498994800,0.19942016,103070.0,103060.0,1.61636902]
[1747498995005,0.19942016,103070.0,103060.0,1.66576086]
[1747498995501,0.19942016,103070.0,103060.0,0.72078859]
[1747498995701,0.59222016,103070.0,103060.0,0.55766859]
[1747498996001,0.65842016,103070.0,103060.0,0.34078859]
[1747498996301,0.85842016,103070.0,103060.0,0.30758859]
[1747498996699,0.85842016,103070.0,103060.0,0.11359189]
[1747498996896,0.85842016,103070.0,103060.0,0.08259189]
[1747498997199,0.85842016,103070.0,103060.0,0.27658859]
[1747498998996,0.85842016,103070.0,103060.0,0.22719675]
[1747498999199,0.47762016,103070.0,103060.0,0.25939675]
[1747498999498,0.83842016,103070.0,103060.0,0.40884902]
[1747498999693,0.47762016,103070.0,103060.0,0.40884902]
[1747498999901,0.83842016,103070.0,103060.0,0.40884902]
[1747499002402,0.47762016,103070.0,103060.0,0.40884902]
[1747499004101,0.83842016,103070.0,103060.0,0.25939675]
[1747499006905,0.80532016,103070.0,103060.0,0.45884902]
[1747499007309,0.74022016,103070.0,103060.0,0.45884902]
[1747499007506,0.74022016,103070.0,103060.0,0.61884902]
[1747499007708,0.54624226,103070.0,103060.0,0.61884902]
[1747499008009,0.74022016,103070.0,103060.0,0.83648902]
[1747499008209,0.56022016,103070.0,103060.0,0.83648902]
[1747499008602,0.56022016,103070.0,103060.0,1.19728902]
[1747499008603,0.19942016,103070.0,103060.0,1.19728902]
[1747499009509,0.19942016,103070.0,103060.0,0.83648902]
[1747499009808,0.19942016,103070.0,103060.0,1.19728902]
[1747499010208,0.19942016,103070.0,103060.0,1.23431432]
[1747499010609,0.00544226,103070.0,103060.0,1.23431432]
[1747499013803,0.00544226,103070.0,103060.0,1.23431427]
[1747499014810,0.00544226,103070.0,103060.0,1.58471427]
[1747499015007,0.00544226,103070.0,103060.0,1.63410611]
[1747499016204,0.00544226,103070.0,103060.0,1.41646611]
[1747499016403,0.00544226,103070.0,103060.0,1.85206611]
[1747499017713,0.00544226,103070.0,103060.0,1.70261384]
[1747499017914,0.00544226,103070.0,103060.0,1.85206611]
[1747499019415,0.00544226,103070.0,103060.0,1.49126611]
[1747499019716,0.00544226,103070.0,103060.0,1.85206611]
[1747499023317,0.18544226,103070.0,103060.0,1.85206611]
[1747499023714,0.21784226,103070.0,103060.0,1.85206611]
[1747499024102,0.18544226,103070.0,103060.0,1.85206611]
[1747499024307,0.00544226,103070.0,103060.0,1.85206611]
[1747499026119,0.18544226,103070.0,103060.0,1.85206611]
[1747499026820,0.18544226,103070.0,103060.0,1.90043722]
[1747499027015,0.18544226,103070.0,103060.0,1.86341192]
[1747499027324,0.00544226,103070.0,103060.0,1.86341192]
[1747499028621,0.00544226,103070.0,103060.0,1.86297192]
[1747499028817,0.002,103080.0,103070.0,0.1939778]
[1747499029119,0.14988437,103090.0,103080.0,0.193959]
[1747499029322,0.14988437,103090.0,103080.0,1.73192354]
[1747499029708,5.197,103100.0,103090.0,0.1939402]
[1747499029915,5.1336,103100.0,103090.0,1.46979247]
[1747499030115,5.3136,103100.0,103090.0,1.46979247]
[1747499030619,5.2242459,103100.0,103090.0,1.11939247]
[1747499030817,5.2242459,103100.0,103090.0,1.46979247]
[1747499031023,5.2302459,103100.0,103090.0,1.46979247]
[1747499031217,4.9921334,103100.0,103090.0,1.11939247]
[1747499031518,4.5600408,103100.0,103090.0,1.51816358]
[1747499031720,4.1860373,103100.0,103090.0,1.51916358]
[1747499032026,0.29969008,103110.0,103100.0,0.1939214]
[1747499032027,0.22304558,103110.0,103100.0,0.1939214]
[1747499032220,0.19812128,103110.0,103100.0,1.72250594]
[1747499033118,0.18038818,103110.0,103100.0,1.57405367]
[1747499033323,0.01573338,103110.0,103100.0,1.57405367]
[1747499033525,0.09836512,103120.0,103110.0,0.1939026]
[1747499033719,0.0311,103130.0,103110.0,0.98365227]
[1747499033921,0.064,103140.0,103130.0,0.193865]
[1747499034127,0.2751,103140.0,103130.0,0.904665]
[1747499034326,0.2751,103140.0,103130.0,0.967765]
[1747499034929,0.2751,103140.0,103130.0,0.998065]
[1747499035225,0.19,103140.0,103130.0,0.999065]
[1747499035815,0.2511,103140.0,103130.0,0.999065]
[1747499036018,0.2511,103140.0,103130.0,1.433985]
[1747499036224,0.2511,103140.0,103130.0,0.999065]
[1747499036418,0.1742661,103140.0,103130.0,1.440985]
[1747499036627,0.0307,103150.0,103140.0,0.1938462]
[1747499036925,0.0307,103150.0,103140.0,1.08699847]
[1747499037114,0.2107,103150.0,103140.0,0.9375462]
[1747499037314,0.2718,103150.0,103140.0,0.9375462]
[1747499037726,0.4656274,103150.0,103140.0,0.9395462]
[1747499037926,0.61507967,103150.0,103140.0,0.5478462]
[1747499038229,0.61507967,103150.0,103140.0,0.6628862]
[1747499038632,0.61507967,103150.0,103140.0,1.0078862]
[1747499040238,0.4656274,103150.0,103140.0,1.0078862]
[1747499040436,0.4656274,103150.0,103140.0,0.5728462]
[1747499040732,1.35587967,103150.0,103140.0,0.2008462]
[1747499040922,1.35587967,103150.0,103140.0,0.007]
[1747499042134,0.193865,103130.0,103120.0,0.23087393]
[1747499042328,0.554665,103130.0,103120.0,0.23087393]
[1747499042539,1.13731727,103130.0,103120.0,0.23087393]
[1747499043134,1.31731727,103130.0,103120.0,0.23087393]
[1747499043338,1.31731727,103130.0,103120.0,0.24287393]
[1747499043730,0.94731727,103130.0,103120.0,0.24287393]
[1747499043934,1.28731727,103130.0,103120.0,0.24187393]
[1747499044434,1.29275943,103130.0,103120.0,0.2048682]
[1747499045235,1.32585943,103130.0,103120.0,0.2374682]
[1747499045832,1.32585943,103130.0,103120.0,0.2324682]
[1747499048336,0.98585943,103130.0,103120.0,0.2324682]
[1747499048736,0.98585943,103130.0,103120.0,0.0386]
[1747499048927,1.02585943,103130.0,103120.0,0.1998838]
[1747499049928,1.02585943,103130.0,103120.0,0.006]
[1747499050238,1.02585943,103130.0,103120.0,0.1998838]
[1747499051233,1.02585943,103130.0,103120.0,0.006]
[1747499051430,1.65665943,103130.0,103120.0,0.006]
[1747499051631,1.75362743,103130.0,103120.0,0.006]
[1747499051936,1.97094743,103130.0,103120.0,0.006]
[1747499052633,1.72452716,103130.0,103120.0,0.1998838]
[1747499052937,0.83640716,103130.0,103120.0,0.5038838]
[1747499053136,0.83640716,103130.0,103120.0,0.5370838]
[1747499053439,0.98585943,103130.0,103120.0,0.2468838]
[1747499054038,0.98585943,103130.0,103120.0,0.2272838]
[1747499054740,0.83640716,103130.0,103120.0,0.2272838]
[1747499055443,0.83640716,103130.0,103120.0,0.22825429]
[1747499059538,0.64254216,103130.0,103120.0,0.64738656]
[1747499059738,0.6371,103130.0,103120.0,1.14470656]
[1747499059939,0.6371,103130.0,103120.0,1.50550656]
[1747499059940,0.2105,103130.0,103120.0,1.50550656]
[1747499060740,0.18544216,103130.0,103120.0,1.50550656]
[1747499060946,0.18544216,103130.0,103120.0,1.85590656]
[1747499061433,0.18544216,103130.0,103120.0,1.95467707]
[1747499062340,0.18544216,103130.0,103120.0,1.95567707]
[1747499062550,0.18544216,103130.0,103120.0,1.95267707]
[1747499062850,0.18544216,103130.0,103120.0,2.0906508]
[1747499063042,0.18544216,103130.0,103120.0,2.0926508]
[1747499063239,0.18544216,103130.0,103120.0,2.0946508]
[1747499063546,0.0001862,103140.0,103130.0,0.193865]
[1747499063740,0.0001862,103140.0,103130.0,1.46891727]
[1747499063939,0.28991865,103160.0,103150.0,0.1938275]
[1747499064141,0.46915915,103160.0,103150.0,0.4553465]
[1747499064340,0.18,103160.0,103150.0,1.05999877]
[1747499065841,0.18,103160.0,103150.0,1.11325686]
[1747499066347,0.18,103160.0,103150.0,1.12019569]
[1747499068647,0.18,103160.0,103150.0,1.47059569]
[1747499069149,0.18,103160.0,103150.0,1.4173376]
[1747499073949,0.18,103160.0,103150.0,1.6341776]
[1747499074961,0.18544216,103160.0,103150.0,1.6341776]
[1747499075655,0.25124216,103160.0,103150.0,1.6341776]
[1747499076155,0.44505086,103160.0,103150.0,0.90708533]
[1747499076355,0.59450313,103160.0,103150.0,0.80192533]
[1747499076561,0.83885086,103160.0,103150.0,0.65468533]
[1747499078152,0.47805086,103160.0,103150.0,0.65468533]
[1747499078358,0.83885086,103160.0,103150.0,0.65468533]
[1747499079654,0.84885086,103160.0,103150.0,0.58468533]
[1747499080456,0.99830313,103160.0,103150.0,0.58468533]
[1747499080666,0.84885086,103160.0,103150.0,0.23428533]
[1747499086859,0.99830313,103160.0,103150.0,0.23428533]
[1747499087059,0.99830313,103160.0,103150.0,0.00845783]
[1747499087261,1.31830313,103160.0,103150.0,0.00845783]
[1747499088260,1.41524313,103160.0,103150.0,0.00845783]
[1747499091365,1.41524313,103160.0,103150.0,0.20228523]
[1747499091667,1.63248313,103160.0,103150.0,0.00845783]
[1747499092672,1.84392295,103160.0,103150.0,0.00845783]
[1747499093176,2.06028295,103160.0,103150.0,0.00845783]
[1747499094776,1.62668295,103160.0,103150.0,0.00845783]
[1747499094976,2.05952295,103160.0,103150.0,0.00845783]
[1747499095277,2.05944295,103160.0,103150.0,0.00845783]
[1747499095879,1.62668295,103160.0,103150.0,0.00845783]
[1747499096069,1.38029068,103160.0,103150.0,0.20228523]
[1747499096378,1.06029068,103160.0,103150.0,0.32478523]
[1747499101077,1.05029068,103160.0,103150.0,0.32478523]
[1747499103979,1.19974295,103160.0,103150.0,0.26478523]
[1747499104367,1.44974295,103160.0,103150.0,0.26478523]
[1747499105280,1.30029068,103160.0,103150.0,0.26478523]
[1747499105482,1.05029068,103160.0,103150.0,0.50478523]
[1747499105679,0.98459068,103160.0,103150.0,0.6542375]
[1747499105879,0.59069068,103160.0,103150.0,0.6542375]
[1747499106178,0.59069068,103160.0,103150.0,0.50478523]
[1747499106384,1.01539068,103160.0,103150.0,0.50478523]
[1747499106771,0.65459068,103160.0,103150.0,0.50478523]
[1747499107066,1.01539068,103160.0,103150.0,0.50478523]
[1747499107483,0.65459068,103160.0,103150.0,0.50478523]
[1747499107679,0.62149068,103160.0,103150.0,0.50478523]
[1747499108177,0.59069068,103160.0,103150.0,0.50478523]
[1747499109385,0.95149068,103160.0,103150.0,0.50478523]
[1747499110175,0.65269068,103160.0,103150.0,0.50478523]
[1747499115382,0.65269068,103160.0,103150.0,0.50575572]
[1747499120390,0.44125086,103160.0,103150.0,0.50575572]
[1747499120586,0.94070313,103160.0,103150.0,0.23575572]
[1747499120787,1.30150313,103160.0,103150.0,0.04192832]
[1747499121290,1.34795174,103160.0,103150.0,0.00942832]
[1747499121783,1.87689174,103160.0,103150.0,0.00942832]
[1747499122386,1.87685174,103160.0,103150.0,0.00942832]
[1747499122888,1.87685174,103160.0,103150.0,0.00542832]
[1747499123082,1.87885174,103160.0,103150.0,0.00542832]
[1747499123283,1.83221204,103160.0,103150.0,0.00542832]
[1747499123885,1.83221204,103160.0,103150.0,2e-08]
[1747499123886,2.08221204,103160.0,103150.0,2e-08]
[1747499124082,1.83221204,103160.0,103150.0,2e-08]
[1747499124389,1.86665204,103160.0,103150.0,2e-08]
[1747499124599,2.08313204,103160.0,103150.0,2e-08]
[1747499125095,1.65225204,103160.0,103150.0,2e-08]
[1747499125296,1.83529204,103160.0,103150.0,2e-08]
[1747499125600,1.83525204,103160.0,103150.0,2e-08]
[1747499133095,1.83469204,103160.0,103150.0,2e-08]
[1747499133299,1.40225204,103160.0,103150.0,2e-08]
[1747499133490,1.83481204,103160.0,103150.0,2e-08]
[1747499134601,0.1938488,103140.0,103130.0,0.0333]
[1747499134801,1.81958843,103140.0,103130.0,0.03216075]
[1747499135001,1.88198843,103140.0,103130.0,0.03216075]
[1747499135201,2.06198843,103140.0,103130.0,0.03216075]
[1747499135890,2.06198843,103140.0,103130.0,0.03316075]
[1747499136096,2.21124961,103140.0,103130.0,0.03716075]
[1747499136394,2.22544471,103140.0,103130.0,0.03716075]
[1747499136603,2.07618353,103140.0,103130.0,0.03716075]
[1747499139096,1.92692235,103140.0,103130.0,0.03716075]
[1747499139302,2.07618353,103140.0,103130.0,0.03716075]
[1747499142595,2.07582353,103140.0,103130.0,0.03716075]
[1747499147014,2.22508471,103140.0,103130.0,0.03716075]
[1747499147201,2.07582353,103140.0,103130.0,0.03716075]
[1747499147505,2.22508471,103140.0,103130.0,0.03716075]
[1747499148006,1.86014353,103140.0,103130.0,0.03716075]
[1747499148207,1.86014353,103140.0,103130.0,0.23102835]
[1747499148498,1.25882725,103140.0,103130.0,0.29702835]
[1747499148701,1.22772725,103140.0,103130.0,0.29702835]
[1747499149092,1.72268725,103140.0,103130.0,0.29702835]
[1747499149305,1.84004843,103140.0,103130.0,0.29702835]
[1747499150006,1.62404843,103140.0,103130.0,0.29702835]
[1747499150304,1.44866843,103140.0,103130.0,0.29702835]
[1747499150506,1.01618843,103140.0,103130.0,0.29702835]
[1747499150805,1.29932725,103140.0,103130.0,0.29702835]
[1747499151006,1.30476941,103140.0,103130.0,0.29702835]
[1747499151606,0.87236941,103140.0,103130.0,0.29702835]
[1747499152997,1.02163059,103140.0,103130.0,0.29702835]
[1747499153197,1.05343059,103140.0,103130.0,0.29702835]
[1747499153397,1.05343059,103140.0,103130.0,0.10316075]
[1747499153601,1.89687177,103140.0,103130.0,0.07016075]
[1747499153811,1.89687177,103140.0,103130.0,0.03716075]
[1747499153996,0.1938864,103120.0,103110.0,0.60924478]
[1747499154307,1.04508683,103120.0,103110.0,0.30823662]
[1747499154507,1.10558683,103120.0,103110.0,0.11433142]
[1747499154704,1.66638683,103120.0,103110.0,0.11433142]
[1747499155813,1.51712565,103120.0,103110.0,0.12033142]
[1747499156001,1.68638683,103120.0,103110.0,0.12433142]
[1747499156328,1.30712565,103120.0,103110.0,0.12233142]
[1747499156498,1.65638683,103120.0,103110.0,0.18233142]
[1747499156706,1.65638683,103120.0,103110.0,0.22133142]
[1747499156904,1.65638683,103120.0,103110.0,0.48523662]
[1747499157110,1.30638683,103120.0,103110.0,0.51663662]
[1747499157411,0.79632565,103120.0,103110.0,0.51663662]
[1747499157612,0.76602565,103120.0,103110.0,0.51663662]
[1747499159212,0.58602565,103120.0,103110.0,0.51663662]
[1747499159806,0.58602565,103120.0,103110.0,0.46724478]
[1747499160207,0.76602565,103120.0,103110.0,0.46724478]
[1747499162215,0.79702565,103120.0,103110.0,0.46724478]
[1747499166317,0.80246781,103120.0,103110.0,0.46724478]
[1747499167724,0.80360701,103120.0,103110.0,0.46724478]
[1747499167911,0.57872061,103120.0,103110.0,0.46724478]
[1747499168111,0.18772061,103120.0,103110.0,0.80730596]
[1747499168423,0.00772061,103120.0,103110.0,1.14730596]
[1747499169128,0.00772061,103120.0,103110.0,1.51324714]
[1747499169618,0.00772061,103120.0,103110.0,1.92712596]
[1747499170418,0.20160701,103120.0,103110.0,1.67712596]
[1747499170616,0.20160701,103120.0,103110.0,1.42048478]
[1747499170917,0.59240701,103120.0,103110.0,0.64764478]
[1747499171125,0.65640701,103120.0,103110.0,0.70013171]
[1747499171724,0.26560701,103120.0,103110.0,0.70013171]
[1747499172322,0.26560701,103120.0,103110.0,0.64764478]
[1747499172523,0.26560701,103120.0,103110.0,0.73407735]
[1747499172723,0.23400701,103120.0,103110.0,1.08333853]
[1747499175122,0.26610701,103120.0,103110.0,1.08333853]
[1747499176127,0.44610701,103120.0,103110.0,1.08333853]
[1747499176625,0.44610701,103120.0,103110.0,0.73293853]
[1747499177625,0.44610701,103120.0,103110.0,0.68354669]
[1747499181027,0.25222061,103120.0,103110.0,0.68354669]
[1747499181225,0.26610701,103120.0,103110.0,1.04434669]
[1747499181427,0.00772061,103120.0,103110.0,1.14132669]
[1747499182424,0.00772061,103120.0,103110.0,1.19381477]
[1747499182731,0.00772061,103120.0,103110.0,1.54421477]
[1747499184127,0.00772061,103120.0,103110.0,1.69347595]
[1747499185331,0.00772061,103120.0,103110.0,1.76029477]
[1747499187629,0.00772061,103120.0,103110.0,1.66331477]
[1747499188023,0.00772061,103120.0,103110.0,1.67566588]
[1747499191433,0.00772061,103120.0,103110.0,1.62436322]
[1747499192830,0.20160701,103120.0,103110.0,1.62356322]
[1747499193125,0.41420701,103120.0,103110.0,0.9495247]
[1747499193322,0.47720701,103120.0,103110.0,0.7495247]
[1747499193522,0.94596553,103120.0,103110.0,0.6865247]
[1747499193728,1.12596553,103120.0,103110.0,0.6551247]
[1747499194224,1.12596553,103120.0,103110.0,0.6875247]
[1747499194732,1.02800701,103120.0,103110.0,0.63503662]
[1747499195935,1.17732273,103120.0,103110.0,0.60263662]
[1747499196331,1.17732273,103120.0,103110.0,0.40873142]
[1747499196527,1.17732273,103120.0,103110.0,0.60263662]
[1747499197630,1.17732273,103120.0,103110.0,0.23988916]
[1747499199334,1.02686776,103120.0,103110.0,0.23874991]
[1747499201537,1.02686776,103120.0,103110.0,0.20170553]
[1747499205937,1.17618348,103120.0,103110.0,0.20170553]
[1747499209144,1.02686776,103120.0,103110.0,0.20170553]
[1747499212549,0.66606776,103120.0,103110.0,0.20170553]
[1747499212746,1.02686776,103120.0,103110.0,0.20170553]
[1747499213046,1.17618348,103120.0,103110.0,0.20170553]
[1747499213549,0.81538348,103120.0,103110.0,0.20170553]
[1747499213750,1.17618348,103120.0,103110.0,0.20170553]
[1747499214743,1.17618348,103120.0,103110.0,0.00780033]
[1747499215342,0.1939052,103110.0,103100.0,0.03704438]
[1747499215548,0.86644243,103110.0,103100.0,0.03704438]
[1747499215749,1.05644243,103110.0,103100.0,0.03704438]
[1747499216942,1.05644243,103110.0,103100.0,0.04104438]
[1747499217451,1.05644243,103110.0,103100.0,0.04604438]
[1747499219554,0.89644243,103110.0,103100.0,0.04604438]
[1747499219741,1.26644243,103110.0,103100.0,0.04604438]
[1747499220145,1.26644243,103110.0,103100.0,0.009]
[1747499220345,1.69304243,103110.0,103100.0,0.009]
[1747499221754,0.193924,103100.0,103090.0,0.03704438]
[1747499221957,1.16649846,103100.0,103090.0,0.03704438]
[1747499222156,1.24846123,103100.0,103090.0,0.03704438]
[1747499222951,0.1939428,103090.0,103080.0,0.04939184]
[1747499223152,1.22608003,103090.0,103080.0,0.04939184]
[1747499223352,1.22608003,103090.0,103080.0,0.08189184]
[1747499223651,1.02608003,103090.0,103080.0,0.08189184]
[1747499224159,1.02608003,103090.0,103080.0,0.52689184]
[1747499224351,0.89608003,103090.0,103080.0,0.08689184]
[1747499224553,0.89608003,103090.0,103080.0,0.15689184]
[1747499224744,0.89608003,103090.0,103080.0,0.0375]
[1747499225143,0.89608003,103090.0,103080.0,0.0325]
[1747499225353,0.94747665,103090.0,103080.0,0.0325]
[1747499225755,1.30827665,103090.0,103080.0,0.0325]
[1747499226258,1.30827665,103090.0,103080.0,0.2264617]
[1747499226449,1.1588428,103090.0,103080.0,0.2264617]
[1747499226656,1.1588428,103090.0,103080.0,0.0325]
[1747499226855,1.2188428,103090.0,103080.0,0.0325]
[1747499227262,1.2188428,103090.0,103080.0,0.2264617]
[1747499227447,1.2188428,103090.0,103080.0,0.2569617]
[1747499228259,1.2188428,103090.0,103080.0,0.063]
[1747499228561,1.36827665,103090.0,103080.0,0.063]
[1747499229163,1.18827665,103090.0,103080.0,0.063]
[1747499229662,1.0388428,103090.0,103080.0,0.063]
[1747499229861,1.18827665,103090.0,103080.0,0.063]
[1747499232463,1.39827665,103090.0,103080.0,0.063]
[1747499232765,1.39827665,103090.0,103080.0,0.2569617]
[1747499233068,1.12827665,103090.0,103080.0,0.2569617]
[1747499233256,1.12827665,103090.0,103080.0,0.063]
[1747499233457,1.55523665,103090.0,103080.0,0.2569617]
[1747499233866,1.55523665,103090.0,103080.0,0.063]
[1747499234059,1.61583665,103090.0,103080.0,0.063]
[1747499234459,1.79583665,103090.0,103080.0,0.063]
[1747499234762,1.79697585,103090.0,103080.0,0.2569617]
[1747499234962,1.79697585,103090.0,103080.0,0.063]
[1747499237683,1.43617585,103090.0,103080.0,0.063]
[1747499238864,1.43617585,103090.0,103080.0,0.0325]
[1747499240371,0.1939617,103080.0,103070.0,0.00194033]
[1747499240568,1.3174294,103080.0,103070.0,0.03474033]
[1747499240872,1.3174294,103080.0,103070.0,0.00194033]
[1747499240873,1.16799555,103080.0,103070.0,0.00194033]
[1747499241067,1.3174294,103080.0,103070.0,0.00194033]
[1747499241461,0.1939805,103070.0,103060.0,0.0328]
[1747499241666,1.55337435,103070.0,103060.0,0.0328]
[1747499241965,1.55337435,103070.0,103050.0,0.1133622]
[1747499241966,0.1939993,103060.0,103050.0,0.1133622]
[1747499242166,0.89803315,103060.0,103050.0,0.1461622]
[1747499243277,0.89803315,103060.0,103050.0,0.1511622]
[1747499244380,0.7485993,103060.0,103050.0,0.1511622]
[1747499244577,0.89803315,103060.0,103050.0,0.1551622]
[1747499246873,0.89803315,103060.0,103050.0,0.10577036]
[1747499247068,0.7485993,103060.0,103050.0,0.10577036]
[1747499247273,0.74671361,103060.0,103050.0,0.10577036]
[1747499247984,0.6485993,103060.0,103050.0,0.10577036]
[1747499248282,0.75671361,103060.0,103050.0,0.10577036]
[1747499251175,0.6585993,103060.0,103050.0,0.29978846]
[1747499251376,0.75671361,103060.0,103050.0,0.29978846]
[1747499251583,0.97119361,103060.0,103050.0,0.29978846]
[1747499251782,0.97119361,103060.0,103050.0,0.10577036]
[1747499252381,0.97119361,103060.0,103050.0,0.07367036]
[1747499254387,1.20119361,103060.0,103050.0,0.07367036]
[1747499254887,1.20119361,103060.0,103050.0,0.26768846]
[1747499255088,1.20119361,103060.0,103050.0,0.07367036]
[1747499255484,0.84039361,103060.0,103050.0,0.07367036]
[1747499255685,1.20119361,103060.0,103050.0,0.07367036]
[1747499255988,0.84039361,103060.0,103050.0,0.07367036]
[1747499256190,1.20119361,103060.0,103050.0,0.07367036]
[1747499256890,1.1030793,103060.0,103050.0,0.26768846]
[1747499257085,0.79671361,103060.0,103050.0,0.26768846]
[1747499257275,1.01175361,103060.0,103050.0,0.26768846]
[1747499258691,1.01175361,103060.0,103050.0,0.07367036]
[1747499258891,0.65095361,103060.0,103050.0,0.07367036]
[1747499259091,1.01175361,103060.0,103050.0,0.07367036]
[1747499259993,1.01175361,103060.0,103050.0,0.26768906]
[1747499264096,0.96175361,103060.0,103050.0,0.26768906]
[1747499264297,0.96175361,103060.0,103050.0,0.29848906]
[1747499264494,0.6485993,103060.0,103050.0,0.39660337]
[1747499264683,0.5851993,103060.0,103050.0,0.73660337]
[1747499265084,0.5851993,103060.0,103050.0,0.91660337]
[1747499266395,0.5851993,103060.0,103050.0,0.70660337]
[1747499266594,0.6151993,103060.0,103050.0,0.70660337]
[1747499267191,0.2243993,103060.0,103050.0,0.93660337]
[1747499267792,0.2255385,103060.0,103050.0,0.93660337]
[1747499270603,0.2255385,103060.0,103050.0,0.94204553]
[1747499272107,0.2583385,103060.0,103050.0,0.94204553]
[1747499272506,0.2583385,103060.0,103050.0,0.93660337]
[1747499273498,0.2583385,103060.0,103050.0,0.94204553]
[1747499274609,0.2583385,103060.0,103050.0,0.93660337]
[1747499275997,0.6191385,103060.0,103050.0,0.93660337]
[1747499276409,0.2583385,103060.0,103050.0,0.93660337]
[1747499277609,0.2583385,103060.0,103050.0,0.94204553]
[1747499278508,0.2583385,103060.0,103050.0,0.84393122]
[1747499278702,0.2913385,103060.0,103050.0,0.84393122]
[1747499279208,0.2913385,103060.0,103050.0,0.94204553]
[1747499279609,0.2913385,103060.0,103050.0,0.83848906]
[1747499281112,0.2913385,103060.0,103050.0,0.93660337]
[1747499282610,0.2913385,103060.0,103050.0,0.94204553]
[1747499283405,0.2913385,103060.0,103050.0,0.75204553]
[1747499283713,0.2913385,103060.0,103050.0,0.74660337]
[1747499286422,0.2913385,103060.0,103050.0,0.57660337]
[1747499286722,0.0011392,103060.0,103050.0,1.51799584]
[1747499287022,0.0011392,103060.0,103050.0,1.41988153]
[1747499287718,0.0011392,103060.0,103050.0,2.11839584]
[1747499288219,0.0011392,103060.0,103050.0,1.86839584]
[1747499288413,0.0011392,103060.0,103050.0,2.02717403]
[1747499289121,0.94479772,103080.0,103070.0,0.1939833]
[1747499289122,0.21343982,103080.0,103070.0,0.1939833]
[1747499289315,0.40740432,103080.0,103070.0,1.07547345]
[1747499289526,0.40740432,103080.0,103070.0,1.16987345]
[1747499290122,0.40740432,103080.0,103070.0,1.34987345]
[1747499290323,0.44010432,103080.0,103070.0,1.34987345]
[1747499290926,0.2286645,103080.0,103070.0,1.34987345]
[1747499291120,0.2286645,103080.0,103070.0,1.35187345]
[1747499291929,0.002,103080.0,103070.0,1.35187345]
[1747499292230,0.002,103080.0,103070.0,1.39741192]
[1747499292427,0.2745255,103100.0,103090.0,0.1939456]
[1747499292626,0.33704575,103100.0,103090.0,0.63281941]
[1747499292823,0.33704575,103100.0,103090.0,0.72651941]
[1747499293330,0.33704575,103100.0,103090.0,0.90651941]
[1747499293533,0.2568428,103100.0,103090.0,0.62651941]
[1747499293734,0.0303,103100.0,103090.0,0.93651941]
[1747499293933,0.2252267,103100.0,103090.0,0.93651941]
[1747499294132,0.2578267,103100.0,103090.0,0.93651941]
[1747499294635,0.2608267,103100.0,103090.0,0.93651941]
[1747499295137,0.2598267,103100.0,103090.0,0.93651941]
[1747499295336,0.2568267,103100.0,103090.0,0.93651941]
[1747499295537,0.2578267,103100.0,103090.0,0.93651941]
[1747499300939,0.2578267,103100.0,103090.0,0.94196157]
[1747499306745,0.0639,103100.0,103090.0,0.94196157]
[1747499306939,0.001,103100.0,103090.0,1.04007588]
[1747499307643,0.0339,103100.0,103090.0,0.94196157]
[1747499307844,0.0339,103100.0,103090.0,0.95655903]
[1747499308039,0.0339,103100.0,103090.0,1.31735903]
[1747499308648,0.0339,103100.0,103090.0,1.66775903]
[1747499308841,0.2608267,103100.0,103090.0,1.66775903]
[1747499309446,0.0669,103100.0,103090.0,1.66775903]
[1747499309746,0.2608275,103100.0,103090.0,1.66775903]
[1747499311946,0.2912275,103100.0,103090.0,1.66775903]
[1747499312244,0.2912275,103100.0,103090.0,1.66231687]
[1747499312442,0.2912275,103100.0,103090.0,1.87495687]
[1747499312651,0.75014181,103100.0,103090.0,0.7251061]
[1747499313342,0.75014181,103100.0,103090.0,0.5451061]
[1747499314250,0.6520275,103100.0,103090.0,0.5451061]
[1747499314741,0.6520275,103100.0,103090.0,0.1947061]
[1747499315641,0.6520275,103100.0,103090.0,0.29282041]
[1747499315841,0.6520275,103100.0,103090.0,0.39392041]
[1747499324452,0.6520275,103100.0,103090.0,0.2958061]
[1747499324653,0.6520275,103100.0,103090.0,0.39392041]
[1747499325758,0.6520275,103100.0,103090.0,0.2258061]
[1747499333064,0.6520275,103100.0,103090.0,0.32392041]
[1747499333454,0.2912275,103100.0,103090.0,0.32392041]
[1747499333763,0.6520275,103100.0,103090.0,0.32392041]
[1747499335363,0.6520275,103100.0,103090.0,0.32936257]
[1747499336458,0.6520275,103100.0,103090.0,0.32392041]
[1747499337460,0.6520275,103100.0,103090.0,0.35422041]
[1747499337767,0.2912275,103100.0,103090.0,0.35422041]
[1747499338068,0.6520275,103100.0,103090.0,0.2561061]
[1747499341473,0.6520275,103100.0,103090.0,0.35422041]
[1747499344874,0.6520275,103100.0,103090.0,0.39130813]
[1747499345473,0.6720275,103100.0,103090.0,0.39130813]
[1747499347368,0.3112275,103100.0,103090.0,0.39130813]
[1747499347567,0.6720275,103100.0,103090.0,0.39130813]
[1747499348976,0.6720275,103100.0,103090.0,0.4406266]
[1747499349577,0.6720275,103100.0,103090.0,0.34251229]
[1747499349773,0.6720275,103100.0,103090.0,0.4406266]
[1747499350170,0.6720275,103100.0,103090.0,0.34251229]
[1747499350978,0.3112275,103100.0,103090.0,0.34251229]
[1747499351571,0.6720275,103100.0,103090.0,0.34251229]
[1747499353768,0.6520275,103100.0,103090.0,0.34251229]
[1747499353968,0.6520275,103100.0,103090.0,0.37441229]
[1747499354170,0.6520275,103100.0,103090.0,0.4725266]
[1747499354770,0.6520275,103100.0,103090.0,0.52495674]
[1747499358677,0.6520275,103100.0,103090.0,0.47563827]
[1747499359584,0.6520275,103100.0,103090.0,0.42320813]